bitfinex/quotes_BTCUSD_20230114
["timestamp","ask_amount","ask_price","bid_price","bid_amount"]
[1673697412160,0.00874,20732.0,20727.0,0.139]
[1673697412161,0.47287716,20732.0,20727.0,0.139]
[1673697412410,0.22902336,20731.0,20728.0,1.04074514]
[1673697412662,0.22902336,20731.0,20729.0,0.07588214]
[1673697412925,0.00096042,20732.0,20730.0,0.07588214]
[1673697413164,0.00296042,20732.0,20731.0,1.041938]
[1673697413377,0.00296042,20732.0,20731.0,1.362872]
[1673697413378,0.002,20732.0,20731.0,1.362872]
[1673697413913,0.002,20732.0,20731.0,1.662872]
[1673697414159,0.002,20732.0,20731.0,1.362872]
[1673697414649,0.0002,20734.0,20731.0,1.362872]
[1673697414890,0.0002,20734.0,20732.0,0.291247]
[1673697415132,0.22906303,20734.0,20732.0,0.560039]
[1673697415621,0.22886303,20734.0,20732.0,0.482339]
[1673697416150,0.23086303,20734.0,20732.0,0.482339]
[1673697416650,0.22886303,20734.0,20732.0,0.482339]
[1673697417158,0.582207,20738.0,20732.0,0.55822114]
[1673697417159,0.0002,20736.0,20732.0,0.55822114]
[1673697417401,0.0002,20736.0,20734.0,0.1]
[1673697417645,0.0002,20736.0,20735.0,1.285486]
[1673697418377,0.0002,20736.0,20735.0,1.375486]
[1673697418869,0.0012,20736.0,20735.0,1.453486]
[1673697419144,0.001,20736.0,20735.0,0.388934]
[1673697419393,0.001,20736.0,20735.0,0.078]
[1673697420392,0.001,20736.0,20735.0,0.398809]
[1673697420650,0.001,20736.0,20735.0,0.078]
[1673697420913,0.001,20736.0,20735.0,0.881085]
[1673697421413,0.0002,20738.0,20736.0,0.1]
[1673697421657,0.0002,20738.0,20737.0,1.01565083]
[1673697421902,0.0002,20738.0,20737.0,2.68645569]
[1673697422665,0.01674469,20743.0,20737.0,2.42745569]
[1673697422915,0.01674469,20743.0,20738.0,1.74676459]
[1673697422916,0.00018,20741.0,20738.0,1.74676459]
[1673697423152,0.00018,20741.0,20740.0,0.1299]
[1673697423397,0.26071252,20746.0,20741.0,0.1]
[1673697423398,0.01526075,20746.0,20741.0,0.1]
[1673697423669,0.01625714,20746.0,20744.0,0.1297]
[1673697423917,0.01625714,20746.0,20745.0,1.84265314]
[1673697423918,0.01526075,20746.0,20745.0,1.84265314]
[1673697424161,0.01526075,20746.0,20745.0,0.802685]
[1673697424162,0.24583107,20746.0,20745.0,0.802685]
[1673697424410,0.24583107,20746.0,20745.0,0.24680305]
[1673697424411,0.01526075,20746.0,20745.0,0.24680305]
[1673697424653,0.01526075,20746.0,20745.0,0.04332105]
[1673697424906,0.23879572,20746.0,20743.0,0.612272]
[1673697425153,0.26266421,20745.0,20743.0,0.612272]
[1673697425407,0.26266421,20745.0,20742.0,0.482101]
[1673697425408,0.23269252,20743.0,20742.0,0.482101]
[1673697425643,0.23269252,20743.0,20742.0,0.685617]
[1673697425899,0.19072595,20743.0,20741.0,0.00019]
[1673697426392,0.1,20744.0,20741.0,0.00019]
[1673697426630,0.29072595,20744.0,20742.0,0.139]
[1673697426877,0.320755,20743.0,20741.0,0.00019]
[1673697427118,0.67590729,20744.0,20739.0,0.24627873]
[1673697427119,0.009944,20742.0,20739.0,0.24627873]
[1673697427361,0.482069,20744.0,20741.0,0.136]
[1673697427362,0.1,20743.0,20741.0,0.136]
[1673697427608,0.320755,20742.0,20737.0,0.20027215]
[1673697427855,0.20066995,20741.0,20737.0,0.20027215]
[1673697428107,0.25360632,20744.0,20740.0,0.25299048]
[1673697428344,0.25360632,20744.0,20741.0,0.07588214]
[1673697428856,0.320755,20743.0,20739.0,0.482183]
[1673697429095,0.009944,20742.0,20739.0,0.482183]
[1673697429340,0.19072595,20742.0,20739.0,0.482183]
[1673697429585,1.010946,20745.0,20739.0,0.482183]
[1673697429857,1.19667195,20745.0,20740.0,0.07588214]
[1673697430102,0.420755,20744.0,20740.0,0.07588214]
[1673697430377,0.420755,20744.0,20739.0,0.19286975]
[1673697430378,0.009944,20743.0,20739.0,0.19286975]
[1673697430641,0.320755,20742.0,20739.0,0.19286975]
[1673697430892,0.009944,20741.0,20738.0,0.482201]
[1673697431201,0.320755,20740.0,20738.0,0.482201]
[1673697431412,0.44871374,20741.0,20738.0,0.74308848]
[1673697431413,0.25798779,20741.0,20738.0,0.74308848]
[1673697431693,0.25798779,20741.0,20739.0,0.14]
[1673697431943,0.25798779,20741.0,20738.0,0.74308848]
[1673697432187,0.25798779,20741.0,20739.0,0.21276522]
[1673697432951,0.22991934,20741.0,20739.0,0.14]
[1673697433217,0.320755,20740.0,20739.0,0.14]
[1673697433461,0.51148095,20740.0,20739.0,0.14]
[1673697433720,0.62132078,20740.0,20739.0,0.14]
[1673697434218,0.62132078,20740.0,20736.0,0.2299957]
[1673697434455,0.49129173,20740.0,20739.0,0.14]
[1673697434698,0.52132078,20740.0,20739.0,0.14]
[1673697434954,0.320755,20740.0,20739.0,0.40994788]
[1673697435207,0.1,20741.0,20739.0,0.19406574]
[1673697435454,0.25680637,20742.0,20739.0,0.19406574]
[1673697435717,0.35727159,20744.0,20739.0,0.19406574]
[1673697435978,0.25727159,20744.0,20740.0,0.07588214]
[1673697436235,0.11526075,20746.0,20741.0,0.07588214]
[1673697436520,0.1905597,20745.0,20742.0,0.07588214]
[1673697437263,0.1905597,20745.0,20742.0,0.482112]
[1673697437481,0.11526075,20746.0,20742.0,0.484112]
[1673697437482,0.21184075,20744.0,20742.0,0.484112]
[1673697437760,0.21339014,20743.0,20742.0,0.002]
[1673697438247,0.21339014,20743.0,20739.0,0.73857387]
[1673697438497,0.21339014,20743.0,20740.0,0.26109833]
[1673697438498,0.40411609,20743.0,20740.0,0.26109833]
[1673697438745,0.21339014,20743.0,20740.0,0.26109833]
[1673697439685,0.21339014,20743.0,20740.0,0.74325433]
[1673697439937,0.59730375,20746.0,20740.0,0.74325433]
[1673697440190,0.59730375,20746.0,20741.0,0.07588214]
[1673697440191,0.26390346,20744.0,20741.0,0.07588214]
[1673697440453,0.26390346,20744.0,20740.0,0.87925433]
[1673697440713,0.45462941,20744.0,20740.0,0.87925433]
[1673697440963,0.77799727,20744.0,20738.0,0.25180333]
[1673697441215,0.77799727,20744.0,20737.0,1.015114]
[1673697441216,0.91148095,20743.0,20737.0,0.00019]
[1673697441461,0.20066995,20742.0,20737.0,0.24352136]
[1673697441719,0.320755,20741.0,20737.0,0.00019]
[1673697441971,0.20066995,20740.0,20737.0,0.00019]
[1673697442227,0.20066995,20740.0,20736.0,0.23275065]
[1673697442228,0.420755,20739.0,20736.0,0.23275065]
[1673697442498,0.009944,20738.0,20737.0,0.19637522]
[1673697442754,1.43253355,20743.0,20739.0,0.21660578]
[1673697443005,0.27395643,20745.0,20740.0,0.07588214]
[1673697443259,0.27395643,20745.0,20739.0,0.47720169]
[1673697443260,0.24287003,20745.0,20741.0,0.07588214]
[1673697443512,0.24287003,20745.0,20742.0,0.07588214]
[1673697443826,0.006,20743.0,20739.0,0.009]
[1673697444034,0.006,20743.0,20738.0,0.00019]
[1673697444035,0.51148095,20742.0,20738.0,0.00019]
[1673697444278,0.20066995,20741.0,20739.0,0.25]
[1673697444570,0.320755,20740.0,20738.0,0.00019]
[1673697444803,0.110574,20739.0,20738.0,0.00019]
[1673697445057,0.10063,20739.0,20738.0,0.43923374]
[1673697445313,0.482113,20742.0,20739.0,0.19817593]
[1673697445567,0.482113,20742.0,20739.0,0.41405807]
[1673697445836,0.320755,20741.0,20739.0,0.19817593]
[1673697446100,0.582113,20742.0,20738.0,0.25]
[1673697446101,0.009944,20740.0,20738.0,0.066]
[1673697446410,0.320755,20739.0,20735.0,0.482257]
[1673697446660,0.19072595,20738.0,20736.0,0.25727368]
[1673697446903,0.21851154,20739.0,20736.0,0.25727368]
[1673697446904,0.40923749,20739.0,20736.0,0.25727368]
[1673697447158,1.54393116,20742.0,20737.0,0.21127586]
[1673697447159,0.003,20740.0,20737.0,0.21127586]
[1673697447399,0.19070826,20741.0,20739.0,0.25791804]
[1673697447654,0.19070826,20741.0,20739.0,0.33380018]
[1673697447911,0.320755,20740.0,20739.0,0.25791804]
[1673697448163,0.19070826,20741.0,20739.0,0.25791804]
[1673697448642,0.22075726,20743.0,20739.0,0.50791804]
[1673697448895,1.021283,20744.0,20739.0,0.58380018]
[1673697449137,0.320755,20743.0,20740.0,0.28610681]
[1673697449384,0.482047,20745.0,20740.0,0.28610681]
[1673697449385,0.25985766,20745.0,20740.0,0.28610681]
[1673697449633,0.25985766,20745.0,20741.0,0.07588214]
[1673697449880,0.003,20743.0,20742.0,0.07588214]
[1673697450160,0.49729575,20746.0,20740.0,1.064313]
[1673697450161,0.01526075,20746.0,20740.0,1.064313]
[1673697450393,0.01526075,20746.0,20741.0,0.07588214]
[1673697450394,0.006,20743.0,20741.0,0.07588214]
[1673697450645,0.006,20743.0,20740.0,1.41612678]
[1673697450886,0.006,20743.0,20741.0,0.611435]
[1673697451141,0.006,20743.0,20742.0,0.20352]
[1673697451383,0.43268215,20746.0,20741.0,1.093567]
[1673697451637,0.43268215,20746.0,20742.0,0.07588214]
[1673697451638,0.006,20745.0,20742.0,0.07588214]
[1673697451882,0.27688921,20746.0,20742.0,0.25502308]
[1673697452137,0.006,20743.0,20742.0,0.33090522]
[1673697452395,0.006,20743.0,20742.0,0.73713608]
[1673697452912,0.27688921,20746.0,20742.0,0.94065608]
[1673697453157,0.27688921,20746.0,20742.0,1.07401822]
[1673697453158,0.28288921,20746.0,20742.0,1.07401822]
[1673697453437,0.27688921,20746.0,20742.0,1.06301822]
[1673697453880,0.27688921,20746.0,20742.0,0.98713608]
[1673697454386,0.27688921,20746.0,20743.0,0.19979295]
[1673697454611,0.01526075,20746.0,20743.0,0.19979295]
[1673697454845,0.02126075,20746.0,20743.0,0.19979295]
[1673697455338,0.02126075,20746.0,20743.0,0.44979295]
[1673697455586,0.01526075,20746.0,20743.0,0.44979295]
[1673697455828,0.02126075,20746.0,20743.0,0.46079295]
[1673697456855,0.02126075,20746.0,20744.0,0.1]
[1673697457141,0.02126075,20746.0,20745.0,0.20158461]
[1673697457391,0.02126075,20746.0,20745.0,0.07588214]
[1673697457631,0.01526075,20746.0,20745.0,0.482043]
[1673697457887,0.01526075,20746.0,20745.0,1.085525]
[1673697458132,0.01526075,20746.0,20745.0,1.32574644]
[1673697458381,0.0170012,20750.0,20746.0,0.1]
[1673697458627,0.22989475,20750.0,20747.0,1.03986914]
[1673697458876,0.22989475,20750.0,20748.0,0.203445]
[1673697459124,0.22989475,20750.0,20747.0,0.963987]
[1673697459627,0.2612338,20749.0,20748.0,0.25]
[1673697459864,0.5819888,20749.0,20746.0,0.00152607]
[1673697460112,0.110574,20748.0,20747.0,0.25]
[1673697460355,0.110574,20748.0,20746.0,0.00152607]
[1673697460610,0.320755,20747.0,20746.0,0.00152607]
[1673697461115,0.320755,20747.0,20746.0,0.49520039]
[1673697461377,0.001,20748.0,20747.0,0.139]
[1673697461679,0.001,20748.0,20747.0,0.620997]
[1673697461936,0.001,20748.0,20747.0,0.139]
[1673697462195,0.20453712,20748.0,20747.0,0.25]
[1673697462702,0.14449342,20748.0,20746.0,0.00152607]
[1673697462932,0.62746742,20748.0,20747.0,0.141]
[1673697463176,1.05830138,20748.0,20747.0,0.141]
[1673697463422,0.94822242,20748.0,20747.0,0.141]
[1673697463674,1.17165896,20748.0,20747.0,0.391]
[1673697463914,1.17165896,20748.0,20747.0,0.25]
[1673697463915,1.02616554,20748.0,20747.0,0.25]
[1673697464191,0.904729,20748.0,20747.0,0.25]
[1673697464424,1.25645196,20748.0,20747.0,0.24991685]
[1673697464670,1.25645196,20748.0,20747.0,0.38991685]
[1673697464671,1.16787819,20748.0,20747.0,0.38991685]
[1673697465691,1.16787819,20748.0,20746.0,0.00152607]
[1673697465692,0.1,20747.0,20746.0,0.00152607]
[1673697465941,1.66200413,20747.0,20746.0,0.00152607]
[1673697466187,3.20426394,20747.0,20746.0,0.00152607]
[1673697466934,3.20427169,20747.0,20746.0,0.00152607]
[1673697467185,3.02190102,20747.0,20746.0,0.00152607]
[1673697467694,2.43479401,20747.0,20746.0,0.00852607]
[1673697467945,2.43479401,20747.0,20746.0,0.00152607]
[1673697467946,2.21873144,20747.0,20746.0,0.00152607]
[1673697468201,1.61769273,20747.0,20746.0,0.00352607]
[1673697468456,1.59269273,20747.0,20746.0,0.00152607]
[1673697468694,1.59269273,20747.0,20746.0,0.00852607]
[1673697468943,1.59269273,20747.0,20746.0,0.00152607]
[1673697469191,1.61769273,20747.0,20746.0,0.00352607]
[1673697469674,1.13569573,20747.0,20746.0,0.00352607]
[1673697470919,1.03434521,20747.0,20746.0,0.00352607]
[1673697471406,1.02440121,20747.0,20746.0,0.00352607]
[1673697472409,1.34515621,20747.0,20746.0,0.00352607]
[1673697472897,1.02440121,20747.0,20746.0,0.00352607]
[1673697473137,1.34515621,20747.0,20746.0,0.00352607]
[1673697473630,1.4167138,20747.0,20746.0,0.00352607]
[1673697474907,1.0959588,20747.0,20746.0,0.00352607]
[1673697475411,1.0959588,20747.0,20746.0,0.25124906]
[1673697475412,1.02440121,20747.0,20746.0,0.25124906]
[1673697475894,1.01940121,20747.0,20746.0,0.25124906]
[1673697476915,1.01940121,20747.0,20746.0,0.73326906]
[1673697478831,1.01940121,20747.0,20746.0,0.25124906]
[1673697479811,1.01940121,20747.0,20746.0,0.00352607]
[1673697482001,1.09503317,20747.0,20746.0,0.00352607]
[1673697483465,0.0170012,20750.0,20746.0,0.56020621]
[1673697483708,0.0170012,20750.0,20747.0,1.15654283]
[1673697483947,0.0170012,20750.0,20748.0,0.963948]
[1673697484248,0.09143302,20747.0,20746.0,0.00030407]
[1673697484499,0.09143302,20747.0,20746.0,0.12630407]
[1673697484500,0.09149784,20747.0,20746.0,0.12630407]
[1673697484737,0.320755,20747.0,20746.0,0.12630407]
[1673697484990,0.37723467,20747.0,20746.0,0.00030407]
[1673697485239,0.46479671,20747.0,20746.0,0.00030407]
[1673697485484,0.78085928,20747.0,20746.0,0.00030407]
[1673697485971,0.56479671,20747.0,20746.0,0.00030407]
[1673697486445,0.78385928,20747.0,20746.0,0.05330407]
[1673697486685,0.56479671,20747.0,20746.0,0.00030407]
[1673697486929,0.62079671,20747.0,20746.0,0.01130407]
[1673697487172,0.73685928,20747.0,20746.0,0.01130407]
[1673697487449,0.376755,20747.0,20746.0,0.01130407]
[1673697487949,1.50538833,20747.0,20746.0,0.01130407]
[1673697488181,1.50538833,20747.0,20746.0,4.07e-06]
[1673697488182,2.0652675,20747.0,20746.0,4.07e-06]
[1673697488429,0.1,20746.0,20739.0,0.0047213]
[1673697488669,0.14428865,20743.0,20739.0,0.0047213]
[1673697488904,0.51148095,20742.0,20739.0,0.0047213]
[1673697489156,0.20066995,20741.0,20739.0,0.0047213]
[1673697489390,0.19072595,20741.0,20739.0,0.0047213]
[1673697489649,0.1,20741.0,20739.0,0.0047213]
[1673697489893,0.77286495,20741.0,20739.0,0.0047213]
[1673697490142,0.320755,20740.0,20739.0,0.0047213]
[1673697490372,0.802915,20740.0,20739.0,0.0047213]
[1673697490648,0.802915,20740.0,20739.0,0.1227213]
[1673697490649,0.902915,20740.0,20739.0,0.1227213]
[1673697490884,1.04720365,20740.0,20739.0,0.0047213]
[1673697491144,1.2379296,20740.0,20739.0,0.1227213]
[1673697491389,1.2379296,20740.0,20739.0,0.0047213]
[1673697491390,1.57954798,20740.0,20739.0,0.0047213]
[1673697491632,1.57954798,20740.0,20736.0,0.28265823]
[1673697491633,2.88659798,20740.0,20736.0,0.28265823]
[1673697491940,0.10937,20737.0,20736.0,0.28265823]
[1673697492172,1.29458,20737.0,20736.0,0.28265823]
[1673697492419,1.39458,20737.0,20736.0,0.28265823]
[1673697492683,2.30454487,20737.0,20736.0,0.28925823]
[1673697492924,2.30309828,20737.0,20734.0,0.0046016]
[1673697493158,0.77985054,20736.0,20734.0,0.0046016]
[1673697493416,1.285304,20735.0,20734.0,0.0046016]
[1673697493663,1.415504,20735.0,20734.0,0.0046016]
[1673697493900,1.424244,20735.0,20734.0,0.0046016]
[1673697494139,1.408644,20735.0,20734.0,0.0136016]
[1673697495383,2.17765215,20735.0,20734.0,0.0136016]
[1673697495646,2.17765215,20735.0,20734.0,0.0046016]
[1673697495877,2.27165215,20735.0,20734.0,0.0126016]
[1673697496373,2.62715384,20735.0,20734.0,0.0126016]
[1673697496624,2.75725384,20735.0,20734.0,1.6e-06]
[1673697496902,2.75693881,20735.0,20734.0,1.6e-06]
[1673697497149,2.04294637,20735.0,20734.0,0.07588374]
[1673697497404,1.56551325,20735.0,20734.0,1.6e-06]
[1673697498125,1.502544,20735.0,20734.0,1.6e-06]
[1673697498364,2.44924583,20735.0,20734.0,1.6e-06]
[1673697498599,2.92644752,20735.0,20734.0,1.6e-06]
[1673697499072,2.93494752,20735.0,20734.0,1.6e-06]
[1673697499333,3.23494752,20735.0,20734.0,1.6e-06]
[1673697500786,1.802544,20735.0,20734.0,1.6e-06]
[1673697501051,1.8807241,20735.0,20734.0,1.6e-06]
[1673697501297,1.4779841,20735.0,20733.0,0.00490981]
[1673697501549,0.240774,20734.0,20733.0,0.00490981]
[1673697501789,0.723073,20734.0,20733.0,0.00490981]
[1673697502047,0.823073,20734.0,20733.0,0.00490981]
[1673697502535,0.90541272,20734.0,20733.0,0.00490981]
[1673697502793,0.19291372,20734.0,20733.0,0.00490981]
[1673697503056,0.19291372,20734.0,20733.0,0.0048081]
[1673697503057,0.67521272,20734.0,20733.0,0.0048081]
[1673697503303,0.80124214,20734.0,20733.0,0.0048081]
[1673697503550,0.692873,20734.0,20733.0,0.0048081]
[1673697504065,0.992873,20734.0,20733.0,0.0048081]
[1673697504298,0.00808268,20732.0,20729.0,0.00019]
[1673697504534,1.84298295,20731.0,20729.0,0.00019]
[1673697504779,0.89191366,20730.0,20729.0,0.00019]
[1673697505036,1.37430566,20730.0,20729.0,0.00019]
[1673697505279,1.47430566,20730.0,20729.0,0.00019]
[1673697505538,1.001706,20730.0,20729.0,0.00019]
[1673697506021,1.001706,20730.0,20728.0,0.46171295]
[1673697506279,0.43535,20729.0,20728.0,0.46171295]
[1673697506526,1.473507,20729.0,20728.0,0.46171295]
[1673697506774,0.1,20728.0,20727.0,0.0062154]
[1673697507072,1.84962054,20728.0,20727.0,0.0062154]
[1673697507328,0.1,20727.0,20726.0,0.161011]
[1673697507579,0.1,20726.0,20719.0,0.86376537]
[1673697507832,0.1,20726.0,20722.0,0.00019]
[1673697507833,0.10937,20723.0,20722.0,0.00019]
[1673697508091,0.98780095,20723.0,20722.0,0.00019]
[1673697508333,0.897075,20723.0,20722.0,0.00019]
[1673697508579,0.897075,20723.0,20722.0,0.00725449]
[1673697508839,1.37166874,20723.0,20722.0,0.00725449]
[1673697509086,1.92134241,20723.0,20722.0,0.00725449]
[1673697509336,1.68766874,20723.0,20722.0,0.00725449]
[1673697509854,0.00951239,20721.0,20719.0,0.65332283]
[1673697510136,0.00951239,20721.0,20720.0,0.18900529]
[1673697510359,0.22460639,20721.0,20720.0,0.18900529]
[1673697511151,0.00951239,20721.0,20720.0,0.28900529]
[1673697511410,0.02551239,20721.0,20720.0,0.18900529]
[1673697511660,0.02551239,20721.0,20720.0,0.87800914]
[1673697511981,0.00951239,20721.0,20720.0,1.102127]
[1673697512193,0.00951239,20721.0,20720.0,1.202127]
[1673697512702,0.00951239,20721.0,20720.0,1.462527]
[1673697513199,0.01451239,20721.0,20720.0,1.559527]
[1673697513964,0.00951239,20721.0,20720.0,1.462527]
[1673697514951,0.00951239,20721.0,20720.0,2.01561083]
[1673697515207,0.42727508,20731.0,20721.0,0.1]
[1673697515452,0.07925271,20730.0,20725.0,0.1296]
[1673697515717,0.07925271,20730.0,20727.0,0.48246]
[1673697515948,0.07925271,20730.0,20728.0,0.07588214]
[1673697516192,0.18281196,20732.0,20729.0,0.96483]
[1673697516485,0.18281196,20732.0,20730.0,0.07588214]
[1673697516716,0.18281196,20732.0,20729.0,0.96483]
[1673697516717,0.08969557,20731.0,20729.0,0.482415]
[1673697516993,0.08893993,20730.0,20727.0,0.964922]
[1673697517210,0.08411967,20729.0,20727.0,0.964922]
[1673697517460,0.10882168,20732.0,20727.0,0.964922]
[1673697517700,0.10882168,20732.0,20727.0,1.04080414]
[1673697517959,0.20425814,20732.0,20728.0,0.27002643]
[1673697518216,0.10882168,20732.0,20729.0,1.14070414]
[1673697518462,0.10882168,20732.0,20730.0,0.319321]
[1673697518717,0.10882168,20732.0,20731.0,0.482369]
[1673697518975,0.10882168,20732.0,20731.0,0.801671]
[1673697519221,0.10882168,20732.0,20731.0,1.27755314]
[1673697519710,0.482147,20741.0,20732.0,0.1]
[1673697519959,0.09889983,20739.0,20734.0,0.96457]
[1673697520222,0.09889983,20739.0,20736.0,0.1]
[1673697520456,0.01431029,20742.0,20737.0,0.07588214]
[1673697520713,0.072272,20741.0,20738.0,0.07588214]
[1673697520958,0.215094,20740.0,20738.0,0.07588214]
[1673697521200,0.072272,20741.0,20737.0,0.71412907]
[1673697521446,0.072272,20741.0,20737.0,0.79001121]
[1673697522741,0.19072595,20740.0,20737.0,0.482229]
[1673697522977,0.19072595,20740.0,20737.0,0.619229]
[1673697522978,0.01413052,20739.0,20737.0,0.619229]
[1673697523240,0.01413052,20739.0,20737.0,0.759229]
[1673697523481,0.01413052,20739.0,20737.0,0.482229]
[1673697523730,0.08933337,20739.0,20737.0,0.482229]
[1673697524471,0.08933337,20739.0,20737.0,0.137]
[1673697526473,0.08933337,20739.0,20737.0,0.36669947]
[1673697526725,0.01413052,20739.0,20737.0,0.84892447]
[1673697526973,0.01413052,20739.0,20738.0,0.23674307]
[1673697527219,0.01413052,20739.0,20738.0,0.71894907]
[1673697528531,0.01413052,20739.0,20738.0,0.545206]
[1673697528787,0.01413052,20739.0,20738.0,1.37045914]
[1673697529066,0.01413052,20739.0,20738.0,1.294577]
[1673697529288,0.01413052,20739.0,20738.0,1.394577]
[1673697529781,0.01413052,20739.0,20738.0,1.331577]
[1673697530046,0.01413052,20739.0,20738.0,1.470577]
[1673697530537,0.01413052,20739.0,20738.0,0.940377]
[1673697531030,0.01413052,20739.0,20738.0,0.801377]
[1673697531272,0.01413052,20739.0,20738.0,0.940377]
[1673697532010,0.37837084,20739.0,20738.0,0.139]
[1673697532264,0.18764489,20739.0,20738.0,0.139]
[1673697532524,0.79640947,20739.0,20738.0,0.139]
[1673697532829,1.12077752,20739.0,20738.0,0.139]
[1673697533058,1.12077752,20739.0,20734.0,0.00019]
[1673697533059,0.17340257,20737.0,20734.0,0.00019]
[1673697533329,0.89681295,20736.0,20734.0,0.00019]
[1673697533570,0.215094,20735.0,20734.0,0.00019]
[1673697533814,0.79737,20735.0,20734.0,0.00019]
[1673697534300,0.79737,20735.0,20730.0,0.24893208]
[1673697534301,0.69737,20735.0,20730.0,0.24893208]
[1673697534547,0.19072595,20734.0,20730.0,0.24893208]
[1673697534801,0.19072595,20734.0,20731.0,0.24619145]
[1673697535048,0.582276,20735.0,20731.0,0.25277322]
[1673697535288,0.718276,20735.0,20731.0,0.25277322]
[1673697535537,0.98251281,20735.0,20731.0,0.25277322]
[1673697535784,0.351094,20734.0,20731.0,0.25777322]
[1673697536025,0.482276,20735.0,20731.0,0.2527732]
[1673697536266,0.08293853,20733.0,20731.0,0.2567732]
[1673697537016,0.619276,20735.0,20731.0,0.2567732]
[1673697537017,0.07302735,20735.0,20732.0,0.26203465]
[1673697537314,0.136,20734.0,20732.0,0.33791679]
[1673697537558,0.136,20734.0,20732.0,0.26203465]
[1673697537816,0.136,20734.0,20731.0,0.01658177]
[1673697537817,0.136,20733.0,20731.0,0.01658177]
[1673697538054,0.07222256,20733.0,20731.0,0.00658177]
[1673697538295,0.07222256,20733.0,20732.0,0.005]
[1673697538762,0.07222256,20733.0,20731.0,0.00658177]
[1673697539009,0.08122256,20733.0,20731.0,0.05058177]
[1673697539270,0.08122256,20733.0,20731.0,0.00658177]
[1673697540264,0.07222256,20733.0,20731.0,0.00658177]
[1673697540749,0.08122256,20733.0,20731.0,0.05058177]
[1673697541774,0.08977917,20732.0,20731.0,0.05058177]
[1673697542281,0.17711265,20732.0,20731.0,0.05058177]
[1673697542516,0.39220665,20732.0,20731.0,0.05058177]
[1673697542748,0.07711265,20732.0,20731.0,0.05058177]
[1673697543237,0.07711265,20732.0,20731.0,0.00658177]
[1673697543743,0.30120665,20732.0,20731.0,0.05058177]
[1673697543974,0.40120665,20732.0,20731.0,0.05058177]
[1673697544487,0.88988341,20732.0,20731.0,0.05058177]
[1673697544749,1.66214103,20732.0,20731.0,0.05058177]
[1673697545978,1.65314103,20732.0,20731.0,0.00658177]
[1673697546215,1.65314103,20732.0,20731.0,0.01058177]
[1673697546216,1.70669762,20732.0,20731.0,0.01058177]
[1673697546455,1.26969762,20732.0,20731.0,0.00658177]
[1673697546708,0.93444,20732.0,20731.0,0.01058177]
[1673697547211,1.70669762,20732.0,20731.0,0.01058177]
[1673697547446,1.1825813,20732.0,20731.0,0.01058177]
[1673697547714,2.64000656,20732.0,20731.0,0.01058177]
[1673697547974,2.64000656,20732.0,20725.0,0.0067031]
[1673697547975,0.01955882,20730.0,20727.0,0.00019]
[1673697548200,0.01955882,20730.0,20727.0,0.07607214]
[1673697548201,1.83327512,20729.0,20727.0,0.07607214]
[1673697548449,0.96483,20729.0,20727.0,0.00019]
[1673697548677,0.215094,20728.0,20727.0,0.00019]
[1673697548917,0.797533,20728.0,20727.0,0.00019]
[1673697549151,0.697533,20728.0,20727.0,0.00319]
[1673697549391,0.2988894,20728.0,20727.0,0.003]
[1673697549633,0.4348894,20728.0,20727.0,0.003]
[1673697551087,0.136,20728.0,20727.0,0.003]
[1673697551340,0.136,20728.0,20727.0,0.20540443]
[1673697552702,0.136,20728.0,20727.0,0.20413426]
[1673697554430,0.136,20728.0,20727.0,0.98659626]
[1673697554673,0.136,20728.0,20727.0,1.00597026]
[1673697555691,0.08151882,20731.0,20727.0,1.00297026]
[1673697555929,0.08151882,20731.0,20727.0,0.7594784]
[1673697556417,0.014,20728.0,20727.0,0.8094784]
[1673697556679,0.08151882,20731.0,20727.0,0.68359626]
[1673697556932,0.09551882,20731.0,20727.0,0.73359626]
[1673697557179,0.09551882,20731.0,20728.0,0.19639449]
[1673697558177,0.08151882,20731.0,20728.0,0.19639449]
[1673697558420,0.08951882,20731.0,20728.0,0.24539449]
[1673697558920,0.08951882,20731.0,20728.0,0.72783249]
[1673697559413,0.008,20731.0,20730.0,0.1299]
[1673697559673,0.008,20731.0,20730.0,2.27228014]
[1673697559974,0.008,20731.0,20730.0,2.196398]
[1673697561221,0.008,20731.0,20730.0,2.1759661]
[1673697561467,0.0033,20732.0,20730.0,2.3061661]
[1673697561714,0.0033,20732.0,20731.0,0.1302]
[1673697561954,0.0033,20732.0,20731.0,1.031871]
[1673697562205,0.0033,20732.0,20731.0,1.331871]
[1673697562985,0.07597001,20732.0,20731.0,1.341871]
[1673697563720,0.26669596,20732.0,20731.0,0.941871]
[1673697563967,0.07597001,20732.0,20731.0,1.14533789]
[1673697564214,0.07597001,20732.0,20731.0,1.13533789]
[1673697564458,0.20543081,20732.0,20731.0,0.436302]
[1673697564711,0.30032596,20732.0,20727.0,0.482643]
[1673697564957,0.30032596,20732.0,20725.0,0.84753654]
[1673697564958,0.40581995,20731.0,20725.0,0.4891971]
[1673697565201,0.00897001,20732.0,20725.0,0.700534]
[1673697565202,0.19072595,20730.0,20725.0,0.700534]
[1673697565451,0.19072595,20729.0,20725.0,0.700534]
[1673697565695,0.19072595,20728.0,20725.0,0.700534]
[1673697565942,0.19072595,20728.0,20726.0,0.24794334]
[1673697566188,0.1,20731.0,20727.0,0.319375]
[1673697566434,0.18435583,20731.0,20727.0,0.07588214]
[1673697566937,0.1,20731.0,20727.0,0.07588214]
[1673697567469,0.001,20728.0,20727.0,0.07588214]
[1673697567707,0.07301576,20729.0,20726.0,0.24794334]
[1673697567949,0.07301576,20729.0,20727.0,0.009]
[1673697568205,0.168,20731.0,20727.0,0.009]
[1673697568206,0.07559098,20728.0,20727.0,0.009]
[1673697568695,0.07559098,20728.0,20726.0,0.24794334]
[1673697568944,0.07559098,20728.0,20726.0,0.023]
[1673697569447,0.07559098,20728.0,20727.0,0.1]
[1673697570212,0.12259098,20728.0,20727.0,0.103]
[1673697571699,0.047,20728.0,20727.0,0.17888214]
[1673697571945,0.047,20728.0,20727.0,0.79247279]
[1673697572191,0.047,20728.0,20727.0,1.11184779]
[1673697573194,0.047,20728.0,20727.0,0.62938579]
[1673697573441,0.047,20728.0,20727.0,0.422375]
[1673697573442,0.14705422,20728.0,20727.0,0.422375]
[1673697573699,0.14705422,20728.0,20727.0,0.103]
[1673697574202,0.047,20728.0,20727.0,0.36129855]
[1673697574472,0.047,20728.0,20727.0,0.904836]
[1673697574957,0.047,20728.0,20727.0,1.10446845]
[1673697575197,0.047,20728.0,20727.0,1.66317544]